[Event "Vetern-SM 50+ 2025"]
[Site "Uppsala, Sweden"]
[Date "2025.07.02"]
[Round "5.8"]
[White "Brandberg, Joakim"]
[Black "Lundberg, Daniel"]
[Result "1/2-1/2"]
[TimeControl "90 min for 40 move + 30 min with an increment of 30 sec starting move 1"]
[WhiteFideId "1712276"]
[BlackFideId "1759264"]
[WhiteElo "2111"]
[BlackElo "1838"]

1. c4 {[%clk 01:30:56]} {[%emt 00:00:03]} e6 {[%clk 01:30:54]} {[%emt
00:00:06]} 2. d4 {[%clk 01:30:58]} {[%emt 00:00:28]} d5 {[%clk 01:31:19]}
{[%emt 00:00:05]} 3. cxd5 {[%clk 01:31:01]} {[%emt 00:00:27]} exd5 {[%clk
01:31:44]} {[%emt 00:00:05]} 4. Nc3 {[%clk 01:31:20]} {[%emt 00:00:11]} a6
{[%clk 01:31:51]} {[%emt 00:00:23]} 5. Nf3 {[%clk 01:29:09]} {[%emt 00:02:41]}
c6 {[%clk 01:31:58]} {[%emt 00:00:23]} 6. Qc2 {[%clk 01:28:28]} {[%emt
00:01:10]} Nf6 {[%clk 01:32:03]} {[%emt 00:00:26]} 7. Bg5 {[%clk 01:28:20]}
{[%emt 00:00:38]} Be6 {[%clk 01:29:39]} {[%emt 00:02:55]} 8. e3 {[%clk
01:28:03]} {[%emt 00:00:46]} h6 {[%clk 01:30:01]} {[%emt 00:00:09]} 9. Bh4
{[%clk 01:27:31]} {[%emt 00:01:01]} Bd6 {[%clk 01:30:23]} {[%emt 00:00:09]} 10.
Bd3 {[%clk 01:25:59]} {[%emt 00:02:01]} Nbd7 {[%clk 01:29:58]} {[%emt
00:00:55]} 11. a3 {[%clk 01:24:14]} {[%emt 00:02:15]} a5 {[%clk 01:27:00]}
{[%emt 00:03:29]} 12. O-O {[%clk 01:22:33]} {[%emt 00:02:10]} O-O {[%clk
01:26:07]} {[%emt 00:01:23]} 13. e4 {[%clk 01:14:38]} {[%emt 00:08:25]} dxe4
{[%clk 01:21:08]} {[%emt 00:05:29]} 14. Nxe4 {[%clk 01:14:58]} {[%emt
00:00:10]} Be7 {[%clk 01:21:31]} {[%emt 00:00:08]} 15. Nc5 {[%clk 01:08:21]}
Nxc5 {[%clk 01:10:45]} {[%emt 00:18:23]} 16. dxc5 {[%clk 01:08:42]} {[%emt
00:00:08]} a4 {[%clk 01:10:09]} {[%emt 00:01:06]} 17. Bc4 {[%clk 01:03:11]}
{[%emt 00:06:01]} Bxc4 {[%clk 01:04:39]} {[%emt 00:06:00]} 18. Qxc4 {[%clk
01:03:32]} {[%emt 00:00:09]} Ra5 {[%clk 00:57:51]} {[%emt 00:07:18]} 19. Rfe1
{[%clk 00:54:49]} {[%emt 00:09:12]} g5 {[%clk 00:49:46]} {[%emt 00:08:35]} 20.
Rad1 {[%clk 00:49:12]} {[%emt 00:06:07]} Nd5 {[%clk 00:49:12]} {[%emt
00:01:04]} 21. Bg3 {[%clk 00:49:03]} {[%emt 00:00:39]} Bxc5 {[%clk 00:44:37]}
{[%emt 00:05:06]} 22. h4 {[%clk 00:47:32]} {[%emt 00:01:59]} f6 {[%clk
00:38:22]} {[%emt 00:06:46]} 23. Qc2 {[%clk 00:41:34]} {[%emt 00:06:28]} Kg7
{[%clk 00:38:02]} {[%emt 00:00:51]} 24. Nd2 {[%clk 00:36:09]} {[%emt 00:05:55]}
Rb5 {[%clk 00:31:07]} {[%emt 00:07:25]} 25. Ne4 {[%clk 00:32:15]} {[%emt
00:04:24]} Qb6 {[%clk 00:27:19]} {[%emt 00:04:18]} 26. hxg5 {[%clk 00:26:37]}
{[%emt 00:06:08]} hxg5 {[%clk 00:27:35]} {[%emt 00:00:14]} 27. Rd2 {[%clk
00:21:18]} {[%emt 00:05:50]} Rf7 {[%clk 00:20:58]} {[%emt 00:07:08]} 28. Qxa4
{[%clk 00:19:23]} {[%emt 00:02:24]} Qd8 {[%clk 00:14:16]} {[%emt 00:07:12]} 29.
Qc2 {[%clk 00:18:49]} {[%emt 00:01:03]} Be7 {[%clk 00:13:52]} {[%emt 00:00:55]}
30. Bh2 {[%clk 00:18:06]} {[%emt 00:01:12]} f5 {[%clk 00:13:27]} {[%emt
00:00:55]} 31. Be5+ {[%clk 00:17:35]} {[%emt 00:01:01]} Kg6 {[%clk 00:13:24]}
{[%emt 00:00:34]} 32. Nc3 {[%clk 00:16:23]} {[%emt 00:01:42]} Ra5 {[%clk
00:12:01]} {[%emt 00:01:54]} 33. Red1 {[%clk 00:14:59]} {[%emt 00:01:53]} Bf6
{[%clk 00:07:48]} {[%emt 00:04:43]} 34. Bxf6 {[%clk 00:14:05]} {[%emt
00:01:23]} Rxf6 {[%clk 00:07:25]} {[%emt 00:00:54]} 35. b4 {[%clk 00:13:22]}
{[%emt 00:01:13]} Rxa3 {[%clk 00:04:48]} {[%emt 00:03:08]} 36. Nxd5 {[%clk
00:13:44]} {[%emt 00:00:08]} cxd5 {[%clk 00:05:10]} {[%emt 00:00:08]} 37. Rxd5
{[%clk 00:14:04]} {[%emt 00:00:09]} Qf8 {[%clk 00:03:48]} {[%emt 00:01:52]} 38.
Rd8 {[%clk 00:03:58]} {[%emt 00:10:36]} Qxb4 {[%clk 00:01:01]} {[%emt
00:03:18]} 39. Qc8 {[%clk 00:04:13]} {[%emt 00:00:15]} Qe7 {[%clk 00:00:52]}
{[%emt 00:00:39]} 40. R8d7 {[%clk 00:03:57]} {[%emt 00:00:47]} Qf8 {[%clk
00:00:44]} {[%emt 00:00:38]} 41. Qxb7 {[%clk 00:03:28]} {[%emt 00:00:58]} Raa6
{[%clk 00:19:56]} {[%emt 00:11:18]} 42. Rd8 {[%clk 00:31:39]} {[%emt 00:02:18]}
Qg7 {[%clk 00:20:00]} {[%emt 00:00:27]} 43. Qb5 {[%clk 00:27:01]} {[%emt
00:05:08]} Rae6 {[%clk 00:19:20]} {[%emt 00:01:10]} 44. Qd5 {[%clk 00:26:30]}
{[%emt 00:01:00]} Qf7 {[%clk 00:18:34]} {[%emt 00:01:18]} 45. Qa8 {[%clk
00:25:17]} {[%emt 00:01:42]} Kg7 {[%clk 00:17:18]} {[%emt 00:01:45]} 46. R8d7
{[%clk 00:21:14]} {[%emt 00:04:34]} Re7 {[%clk 00:17:30]} {[%emt 00:00:18]} 47.
Qa7 {[%clk 00:20:50]} {[%emt 00:00:53]} Rfe6 {[%clk 00:17:51]} {[%emt
00:00:10]} 48. Qd4+ {[%clk 00:20:29]} {[%emt 00:00:51]} Kg6 {[%clk 00:17:30]}
{[%emt 00:00:52]} 49. Rxe7 {[%clk 00:16:07]} {[%emt 00:04:51]} Rxe7 {[%clk
00:16:40]} {[%emt 00:01:20]} 50. Qa1 {[%clk 00:15:54]} {[%emt 00:00:43]} Rd7
{[%clk 00:15:26]} {[%emt 00:01:45]} 51. Qa6+ {[%clk 00:14:55]} {[%emt
00:01:28]} Kg7 {[%clk 00:15:21]} {[%emt 00:00:36]} 52. Rb1 {[%clk 00:14:43]}
{[%emt 00:00:41]} Ra7 {[%clk 00:13:57]} {[%emt 00:01:55]} 53. Qc8 {[%clk
00:14:22]} {[%emt 00:00:50]} Re7 {[%clk 00:12:55]} {[%emt 00:01:32]} 54. Qc1
{[%clk 00:14:31]} {[%emt 00:00:21]} Kg6 {[%clk 00:13:03]} {[%emt 00:00:22]} 55.
Qc5 {[%clk 00:14:13]} {[%emt 00:00:48]} Re6 {[%clk 00:12:37]} {[%emt 00:00:57]}
56. Qc3 {[%clk 00:13:22]} {[%emt 00:01:20]} Qf6 {[%clk 00:12:51]} {[%emt
00:00:17]} 57. Qc8 {[%clk 00:13:03]} {[%emt 00:00:49]} Qe7 {[%clk 00:12:55]}
{[%emt 00:00:26]} 58. Qg8+ {[%clk 00:12:46]} {[%emt 00:00:46]} Kf6 {[%clk
00:13:03]} {[%emt 00:00:22]} 59. Qh8+ {[%clk 00:12:47]} {[%emt 00:00:28]} Kg6
{[%clk 00:13:18]} {[%emt 00:00:16]} 60. Qc3 {[%clk 00:11:02]} {[%emt 00:02:15]}
Qf6 {[%clk 00:13:38]} {[%emt 00:00:11]} 61. Qc8 {[%clk 00:10:49]} {[%emt
00:00:42]} Qe7 {[%clk 00:13:46]} {[%emt 00:00:22]} 62. Qc3 {[%clk 00:09:28]}
{[%emt 00:01:20]} 1/2-1/2

[Event "Vetern-SM 50+ 2025"]
[Site "Uppsala, Sweden"]
[Date "2025.07.03"]
[Round "6.1"]
[White "Vernersson, Per"]
[Black "Johansen, Peter"]
[Result "1-0"]
[TimeControl "90 min for 40 move + 30 min with an increment of 30 sec starting move 1"]
[WhiteFideId "1700863"]
[BlackFideId "1723944"]
[WhiteElo "2258"]
[BlackElo "2104"]

1. d4 {[%clk 01:30:55]} {[%emt 00:00:04]} d5 {[%clk 01:30:50]} {[%emt
00:00:12]} 2. c4 {[%clk 01:31:05]} {[%emt 00:00:19]} e6 {[%clk 01:30:12]}
{[%emt 00:01:08]} 3. Nc3 {[%clk 01:31:21]} {[%emt 00:00:14]} Nf6 {[%clk
01:30:30]} {[%emt 00:00:12]} 4. Bg5 {[%clk 01:31:38]} {[%emt 00:00:14]} c6
{[%clk 01:29:44]} {[%emt 00:01:16]} 5. e3 {[%clk 01:31:41]} {[%emt 00:00:27]}
Nbd7 {[%clk 01:30:03]} {[%emt 00:00:11]} 6. cxd5 {[%clk 01:31:26]} {[%emt
00:00:44]} exd5 {[%clk 01:30:02]} {[%emt 00:00:32]} 7. Bd3 {[%clk 01:31:29]}
{[%emt 00:00:26]} Bd6 {[%clk 01:25:09]} {[%emt 00:05:24]} 8. Qc2 {[%clk
01:28:01]} {[%emt 00:03:57]} h6 {[%clk 01:24:04]} {[%emt 00:01:36]} 9. Bh4
{[%clk 01:28:16]} {[%emt 00:00:14]} Qc7 {[%clk 01:20:05]} {[%emt 00:04:29]} 10.
Nf3 {[%clk 01:20:33]} {[%emt 00:08:12]} g5 {[%clk 01:01:38]} {[%emt 00:18:57]}
11. Bg3 {[%clk 01:19:43]} {[%emt 00:01:20]} g4 {[%clk 00:59:12]} {[%emt
00:02:57]} 12. Nh4 {[%clk 01:17:26]} {[%emt 00:02:47]} Nf8 {[%clk 00:59:01]}
{[%emt 00:00:42]} 13. Nf5 {[%clk 01:15:47]} {[%emt 00:02:08]} Bxf5 {[%clk
00:58:29]} {[%emt 00:01:02]} 14. Bxf5 {[%clk 01:16:08]} {[%emt 00:00:09]} h5
{[%clk 00:55:02]} {[%emt 00:03:57]} 15. Bh4 {[%clk 01:14:46]} {[%emt 00:01:51]}
Be7 {[%clk 00:50:23]} {[%emt 00:05:10]} 16. Bxf6 {[%clk 01:10:27]} {[%emt
00:04:49]} Bxf6 {[%clk 00:50:50]} {[%emt 00:00:04]} 17. Nxd5 {[%clk 01:10:50]}
{[%emt 00:00:06]} Qa5+ {[%clk 00:51:11]} {[%emt 00:00:09]} 18. Nc3 {[%clk
01:11:11]} {[%emt 00:00:08]} Rh6 {[%clk 00:48:02]} {[%emt 00:03:40]} 19. O-O-O
{[%clk 01:08:49]} {[%emt 00:02:51]} Ng6 {[%clk 00:47:15]} {[%emt 00:01:17]} 20.
Bxg6 {[%clk 01:08:19]} {[%emt 00:01:00]} Rxg6 {[%clk 00:47:40]} {[%emt
00:00:05]} 21. Kb1 {[%clk 01:08:22]} {[%emt 00:00:28]} O-O-O {[%clk 00:47:37]}
{[%emt 00:00:32]} 22. Ne4 {[%clk 01:07:29]} {[%emt 00:01:24]} Be7 {[%clk
00:47:44]} {[%emt 00:00:22]} 23. Ng3 {[%clk 01:07:34]} {[%emt 00:00:25]} h4
{[%clk 00:40:02]} {[%emt 00:08:14]} 24. Qf5+ {[%clk 01:07:44]} {[%emt
00:00:19]} Qxf5+ {[%clk 00:40:26]} {[%emt 00:00:06]} 25. Nxf5 {[%clk 01:08:08]}
{[%emt 00:00:06]} Bg5 {[%clk 00:40:49]} {[%emt 00:00:08]} 26. f4 {[%clk
01:07:52]} {[%emt 00:00:45]} gxf3 {[%clk 00:40:44]} {[%emt 00:00:35]} 27. gxf3
{[%clk 01:08:16]} {[%emt 00:00:06]} Bf6 {[%clk 00:40:28]} {[%emt 00:00:46]} 28.
e4 {[%clk 01:05:40]} {[%emt 00:03:06]} Kd7 {[%clk 00:38:28]} {[%emt 00:02:29]}
29. Kc2 {[%clk 01:05:34]} {[%emt 00:00:36]} Rdg8 {[%clk 00:38:28]} {[%emt
00:00:30]} 30. Ne3 {[%clk 01:05:33]} {[%emt 00:00:32]} Bg5 {[%clk 00:37:42]}
{[%emt 00:01:17]} 31. Ng4 {[%clk 01:05:55]} {[%emt 00:00:07]} Bf4 {[%clk
00:37:36]} {[%emt 00:00:36]} 32. h3 {[%clk 01:06:10]} {[%emt 00:00:14]} Ke6
{[%clk 00:34:57]} {[%emt 00:03:09]} 33. Rhe1 {[%clk 01:00:11]} {[%emt
00:06:29]} Rg5 {[%clk 00:32:09]} {[%emt 00:03:19]} 34. Rd3 {[%clk 00:59:51]}
{[%emt 00:00:49]} Ra5 {[%clk 00:31:52]} {[%emt 00:00:48]} 35. a3 {[%clk
00:58:25]} {[%emt 00:01:56]} Rd8 {[%clk 00:31:17]} {[%emt 00:01:05]} 36. b4
{[%clk 00:56:24]} {[%emt 00:02:30]} Rg5 {[%clk 00:30:19]} {[%emt 00:01:29]} 37.
e5 {[%clk 00:55:47]} {[%emt 00:01:07]} Bg3 {[%clk 00:27:40]} {[%emt 00:03:10]}
38. Re4 {[%clk 00:55:02]} {[%emt 00:01:14]} Rf5 {[%clk 00:27:36]} {[%emt
00:00:35]} 39. Kd2 {[%clk 00:52:43]} {[%emt 00:02:47]} Bf4+ {[%clk 00:24:35]}
{[%emt 00:03:32]} 40. Ke2 {[%clk 00:52:50]} {[%emt 00:00:22]} Bg5 {[%clk
00:24:39]} {[%emt 00:00:27]} 41. Rc3 {[%clk 00:51:03]} {[%emt 00:02:16]} a6
{[%clk 00:23:45]} {[%emt 00:01:25]} 42. Nf2 {[%clk 00:45:19]} {[%emt 00:06:13]}
Rf4 {[%clk 00:23:21]} {[%emt 00:00:55]} 43. Rxf4 {[%clk 00:45:26]} {[%emt
00:00:22]} Bxf4 {[%clk 00:23:47]} {[%emt 00:00:05]} 44. Rc4 {[%clk 00:45:49]}
{[%emt 00:00:08]} Rg8 {[%clk 00:21:56]} {[%emt 00:02:20]} 45. Ng4 {[%clk
00:45:56]} {[%emt 00:00:22]} Kf5 {[%clk 00:17:33]} {[%emt 00:04:54]} 46. Rc5
{[%clk 00:45:15]} {[%emt 00:01:11]} Rg6 {[%clk 00:15:55]} {[%emt 00:02:08]} 47.
d5 {[%clk 00:37:50]} {[%emt 00:07:55]} cxd5 {[%clk 00:14:57]} {[%emt 00:01:28]}
48. Rc7 {[%clk 00:35:04]} {[%emt 00:03:16]} f6 {[%clk 00:14:15]} {[%emt
00:01:12]} 49. e6 {[%clk 00:33:50]} {[%emt 00:01:44]} Kxe6 {[%clk 00:12:23]}
{[%emt 00:02:22]} 50. Rxb7 {[%clk 00:34:06]} {[%emt 00:00:14]} Bd6 {[%clk
00:02:38]} {[%emt 00:10:15]} 51. Rb6 {[%clk 00:34:05]} {[%emt 00:00:31]} f5
{[%clk 00:30:29]} {[%emt 00:02:39]} 52. Ne3 {[%clk 01:03:57]} {[%emt 00:00:36]}
f4 {[%clk 00:30:18]} {[%emt 00:00:42]} 53. Ng4 {[%clk 01:04:09]} {[%emt
00:00:18]} Rg8 {[%clk 00:28:51]} {[%emt 00:01:58]} 54. Rxa6 {[%clk 01:04:29]}
{[%emt 00:00:10]} Rc8 {[%clk 00:29:05]} {[%emt 00:00:16]} 55. Kd2 {[%clk
01:04:40]} {[%emt 00:00:18]} d4 {[%clk 00:28:20]} {[%emt 00:01:15]} 56. Nf2
{[%clk 01:03:49]} {[%emt 00:01:21]} Kd5 {[%clk 00:28:11]} {[%emt 00:00:41]} 57.
Ne4 {[%clk 01:04:05]} {[%emt 00:00:13]} Be5 {[%clk 00:27:13]} {[%emt 00:01:27]}
58. Ra5+ {[%clk 01:02:27]} {[%emt 00:02:08]} Ke6 {[%clk 00:27:26]} {[%emt
00:00:18]} 59. Nc5+ {[%clk 01:02:41]} {[%emt 00:00:17]} Kd6 {[%clk 00:27:02]}
{[%emt 00:00:52]} 60. Kd3 {[%clk 01:02:44]} {[%emt 00:00:27]} Rg8 {[%clk
00:25:58]} {[%emt 00:01:35]} 61. Ke4 {[%clk 01:01:54]} {[%emt 00:01:20]} Bg7
{[%clk 00:25:04]} {[%emt 00:01:23]} 62. Ra6+ {[%clk 01:01:58]} {[%emt
00:00:27]} Ke7 {[%clk 00:25:18]} {[%emt 00:00:16]} 63. Kxf4 {[%clk 01:02:01]}
{[%emt 00:00:27]} Rd8 {[%clk 00:24:01]} {[%emt 00:01:48]} 64. Ke4 {[%clk
01:02:16]} {[%emt 00:00:13]} Kf7 {[%clk 00:24:01]} {[%emt 00:00:31]} 65. Kd3
{[%clk 01:01:49]} {[%emt 00:00:56]} Re8 {[%clk 00:24:26]} {[%emt 00:00:06]} 66.
Ne4 {[%clk 01:02:02]} {[%emt 00:00:16]} Re5 {[%clk 00:23:46]} {[%emt 00:01:10]}
67. f4 {[%clk 01:02:15]} {[%emt 00:00:17]} Re7 {[%clk 00:23:46]} {[%emt
00:00:31]} 68. f5 {[%clk 01:02:21]} {[%emt 00:00:24]} Be5 {[%clk 00:23:48]}
{[%emt 00:00:28]} 69. Ng5+ {[%clk 01:01:52]} {[%emt 00:00:58]} Kg7 {[%clk
00:23:39]} {[%emt 00:00:40]} 70. Re6 {[%clk 01:01:56]} {[%emt 00:00:26]} 1-0

[Event "Vetern-SM 50+ 2025"]
[Site "Uppsala, Sweden"]
[Date "2025.07.03"]
[Round "6.2"]
[White "Eriksson, Kristian"]
[Black "Olsson, Pether"]
[Result "1/2-1/2"]
[TimeControl "90 min for 40 move + 30 min with an increment of 30 sec starting move 1"]
[WhiteFideId "1705172"]
[BlackFideId "1726820"]
[WhiteElo "1998"]
[BlackElo "2160"]

1. e4 {[%clk 01:30:54]} {[%emt 00:00:04]} e5 {[%clk 01:30:15]} {[%emt
00:00:44]} 2. Nf3 {[%clk 01:31:14]} {[%emt 00:00:10]} Nc6 {[%clk 01:30:26]}
{[%emt 00:00:19]} 3. Bb5 {[%clk 01:31:34]} {[%emt 00:00:12]} a6 {[%clk
01:30:37]} {[%emt 00:00:19]} 4. Ba4 {[%clk 01:31:54]} {[%emt 00:00:10]} Nf6
{[%clk 01:30:42]} {[%emt 00:00:24]} 5. d4 {[%clk 01:32:07]} {[%emt 00:00:17]}
exd4 {[%clk 01:30:26]} {[%emt 00:00:47]} 6. O-O {[%clk 01:32:24]} {[%emt
00:00:13]} Be7 {[%clk 01:30:01]} {[%emt 00:00:55]} 7. Re1 {[%clk 01:32:10]}
{[%emt 00:00:43]} O-O {[%clk 01:12:21]} {[%emt 00:18:12]} 8. e5 {[%clk
01:31:51]} {[%emt 00:00:48]} Ne8 {[%clk 01:12:49]} {[%emt 00:00:03]} 9. c3
{[%clk 01:30:36]} {[%emt 00:01:44]} b5 {[%clk 01:09:25]} {[%emt 00:03:54]} 10.
Bb3 {[%clk 01:28:58]} {[%emt 00:02:07]} d5 {[%clk 01:07:51]} {[%emt 00:02:05]}
11. cxd4 {[%clk 01:25:28]} {[%emt 00:04:00]} Na5 {[%clk 01:02:15]} {[%emt
00:06:05]} 12. Bc2 {[%clk 01:25:31]} {[%emt 00:00:27]} g6 {[%clk 01:02:42]}
{[%emt 00:00:05]} 13. Qd2 {[%clk 01:08:54]} {[%emt 00:17:06]} c5 {[%clk
00:57:11]} {[%emt 00:06:02]} 14. dxc5 {[%clk 01:05:49]} {[%emt 00:03:34]} Bg4
{[%clk 00:54:02]} {[%emt 00:03:39]} 15. Qf4 {[%clk 00:57:30]} {[%emt 00:08:48]}
Bxf3 {[%clk 00:49:04]} {[%emt 00:05:29]} 16. Qxf3 {[%clk 00:56:37]} {[%emt
00:01:23]} Bxc5 {[%clk 00:46:05]} {[%emt 00:03:29]} 17. Bh6 {[%clk 00:54:13]}
{[%emt 00:02:53]} Nc7 {[%clk 00:39:22]} {[%emt 00:07:14]} 18. Bxf8 {[%clk
00:51:59]} {[%emt 00:02:45]} Bxf8 {[%clk 00:39:42]} {[%emt 00:00:09]} 19. Nc3
{[%clk 00:50:04]} {[%emt 00:02:24]} b4 {[%clk 00:39:42]} {[%emt 00:00:31]} 20.
Ne2 {[%clk 00:47:58]} {[%emt 00:02:35]} Nc4 {[%clk 00:30:40]} {[%emt 00:09:33]}
21. Nf4 {[%clk 00:46:14]} {[%emt 00:02:12]} Nxb2 {[%clk 00:26:25]} {[%emt
00:04:47]} 22. Bb3 {[%clk 00:46:09]} {[%emt 00:00:34]} Qe7 {[%clk 00:21:41]}
{[%emt 00:05:15]} 23. Nxd5 {[%clk 00:42:43]} {[%emt 00:03:55]} Nxd5 {[%clk
00:21:36]} {[%emt 00:00:36]} 24. Bxd5 {[%clk 00:42:39]} {[%emt 00:00:33]} Rd8
{[%clk 00:21:41]} {[%emt 00:00:26]} 25. Rab1 {[%clk 00:37:06]} {[%emt
00:06:03]} Na4 {[%clk 00:21:39]} {[%emt 00:00:32]} 26. Rbd1 {[%clk 00:36:34]}
{[%emt 00:01:01]} Kg7 {[%clk 00:14:04]} {[%emt 00:08:06]} 27. Bb3 {[%clk
00:32:40]} {[%emt 00:04:24]} Rxd1 {[%clk 00:14:28]} {[%emt 00:00:06]} 28. Qxd1
{[%clk 00:32:49]} {[%emt 00:00:21]} Nc5 {[%clk 00:13:58]} {[%emt 00:01:01]} 29.
Qd4 {[%clk 00:28:18]} {[%emt 00:04:59]} Ne6 {[%clk 00:13:03]} {[%emt 00:01:26]}
30. Qb6 {[%clk 00:25:18]} {[%emt 00:03:28]} Nf4 {[%clk 00:10:44]} {[%emt
00:02:52]} 31. Qxa6 {[%clk 00:24:53]} {[%emt 00:00:55]} Qg5 {[%clk 00:10:58]}
{[%emt 00:00:16]} 32. Qf6+ {[%clk 00:22:00]} {[%emt 00:03:22]} Qxf6 {[%clk
00:11:21]} {[%emt 00:00:07]} 33. exf6+ {[%clk 00:22:27]} {[%emt 00:00:03]} Kxf6
{[%clk 00:11:49]} {[%emt 00:00:02]} 34. Rd1 {[%clk 00:17:06]} {[%emt 00:05:48]}
h5 {[%clk 00:10:59]} {[%emt 00:01:22]} 35. Rd7 {[%clk 00:16:29]} {[%emt
00:01:06]} Be7 {[%clk 00:09:55]} {[%emt 00:01:36]} 36. Kf1 {[%clk 00:14:11]}
{[%emt 00:02:47]} g5 {[%clk 00:10:06]} {[%emt 00:00:19]} 37. g3 {[%clk
00:09:54]} {[%emt 00:04:47]} Ng6 {[%clk 00:10:35]} {[%emt 00:00:02]} 38. h3
{[%clk 00:09:01]} {[%emt 00:01:22]} h4 {[%clk 00:07:16]} {[%emt 00:03:50]} 39.
Ke2 {[%clk 00:07:45]} {[%emt 00:01:44]} Ne5 {[%clk 00:03:23]} {[%emt 00:04:25]}
40. Rd1 {[%clk 00:06:04]} {[%emt 00:02:08]} hxg3 {[%clk 00:01:57]} {[%emt
00:01:59]} 41. fxg3 {[%clk 00:06:19]} {[%emt 00:00:13]} Kg7 {[%clk 00:30:13]}
{[%emt 00:02:16]} 42. Bc2 {[%clk 00:33:37]} {[%emt 00:03:11]} Nc6 {[%clk
00:27:32]} {[%emt 00:03:10]} 43. Ke3 {[%clk 00:29:29]} {[%emt 00:04:39]} Bc5+
{[%clk 00:26:43]} {[%emt 00:01:19]} 44. Ke4 {[%clk 00:29:05]} {[%emt 00:00:53]}
Ne7 {[%clk 00:25:12]} {[%emt 00:02:03]} 45. Ke5 {[%clk 00:25:47]} {[%emt
00:03:47]} Ng8 {[%clk 00:22:40]} {[%emt 00:03:02]} 46. Bb3 {[%clk 00:24:28]}
{[%emt 00:01:49]} Be7 {[%clk 00:21:34]} {[%emt 00:01:37]} 47. Rd7 {[%clk
00:16:54]} {[%emt 00:08:03]} Kg6 {[%clk 00:21:54]} {[%emt 00:00:11]} 48. Kd4
{[%clk 00:15:31]} {[%emt 00:01:52]} Kf6 {[%clk 00:21:33]} {[%emt 00:00:52]} 49.
Kc4 {[%clk 00:12:45]} {[%emt 00:03:16]} Kg7 {[%clk 00:20:41]} {[%emt 00:01:22]}
50. Rxe7 {[%clk 00:12:25]} {[%emt 00:00:49]} Nxe7 {[%clk 00:21:05]} {[%emt
00:00:07]} 51. Kxb4 {[%clk 00:12:44]} {[%emt 00:00:12]} f5 {[%clk 00:21:11]}
{[%emt 00:00:24]} 52. a4 {[%clk 00:12:30]} {[%emt 00:00:43]} f4 {[%clk
00:20:52]} {[%emt 00:00:48]} 53. gxf4 {[%clk 00:12:23]} {[%emt 00:00:38]} gxf4
{[%clk 00:21:06]} {[%emt 00:00:16]} 54. Bd1 {[%clk 00:11:41]} {[%emt 00:01:09]}
Nd5+ {[%clk 00:20:27]} {[%emt 00:01:12]} 55. Kb3 {[%clk 00:10:18]} {[%emt
00:01:53]} Kf6 {[%clk 00:19:39]} {[%emt 00:01:17]} 56. a5 {[%clk 00:09:05]}
{[%emt 00:01:44]} Nc7 {[%clk 00:19:41]} {[%emt 00:00:28]} 57. Kc4 {[%clk
00:08:57]} {[%emt 00:00:36]} Kg5 {[%clk 00:18:46]} {[%emt 00:01:27]} 58. Kc5
{[%clk 00:08:59]} {[%emt 00:00:27]} Kh4 {[%clk 00:18:58]} {[%emt 00:00:19]} 59.
Be2 {[%clk 00:04:24]} {[%emt 00:05:03]} Ne6+ {[%clk 00:09:42]} {[%emt
00:09:48]} 60. Kb6 {[%clk 00:04:12]} {[%emt 00:00:41]} Nd4 {[%clk 00:06:52]}
{[%emt 00:03:21]} 61. a6 {[%clk 00:02:43]} {[%emt 00:01:59]} Nxe2 {[%clk
00:05:02]} {[%emt 00:02:19]} 62. a7 {[%clk 00:03:07]} {[%emt 00:00:06]} Kxh3
{[%clk 00:04:59]} {[%emt 00:00:34]} 63. a8=Q {[%clk 00:03:25]} {[%emt
00:00:12]} Kg3 {[%clk 00:04:55]} {[%emt 00:00:34]} 64. Qg8+ {[%clk 00:02:15]}
{[%emt 00:01:40]} Kf2 {[%clk 00:04:55]} {[%emt 00:00:30]} 65. Kc5 {[%clk
00:02:03]} {[%emt 00:00:40]} f3 {[%clk 00:05:15]} {[%emt 00:00:12]} 66. Kc4
{[%clk 00:01:34]} {[%emt 00:00:57]} Ke1 {[%clk 00:03:10]} {[%emt 00:02:37]} 67.
Qf7 {[%clk 00:01:01]} {[%emt 00:01:02]} f2 {[%clk 00:03:26]} {[%emt 00:00:14]}
1/2-1/2